bitfinex/quotes_ETHUSD_20240924
["timestamp","ask_amount","ask_price","bid_price","bid_amount"]
[1727188149716,1.5956,2599.7,2598.9,2.10981]
[1727188149943,1.5956,2599.7,2598.4,5.4167]
[1727188149944,0.09617697,2599.6,2598.4,5.4167]
[1727188150240,3.84748,2599.1,2598.4,1.5682]
[1727188150435,3.84775,2599.0,2598.4,2.109891]
[1727188150588,3.84775,2599.0,2597.9,3.84919]
[1727188150589,3.84804,2598.8,2598.0,1.5682]
[1727188150934,3.8481,2598.7,2598.0,1.5682]
[1727188151116,3.84804,2598.8,2598.0,1.5682]
[1727188151315,3.84804,2598.8,2598.0,5.41721]
[1727188151516,3.84832,2598.6,2598.0,2.494848]
[1727188151831,7.6961,2598.8,2598.0,6.343948]
[1727188152132,1.5956,2598.9,2598.0,6.343948]
[1727188152133,1.5956,2598.9,2598.2,3.84877]
[1727188152330,3.84773,2599.0,2598.2,3.84877]
[1727188152482,3.84779,2598.9,2598.2,3.84877]
[1727188152830,3.84779,2598.9,2598.2,4.83881748]
[1727188153037,3.84755,2599.1,2598.2,4.83875748]
[1727188153332,3.84787,2598.9,2598.0,5.41722]
[1727188153537,3.84756,2599.1,2598.0,1.5682]
[1727188153831,3.84772,2599.0,2598.3,3.84855]
[1727188154125,3.84772,2599.0,2598.4,3.84847]
[1727188154290,3.84772,2599.0,2598.3,0.769726]
[1727188154495,3.84778,2598.9,2598.3,3.84864]
[1727188154825,0.76955,2598.9,2598.0,5.41719]
[1727188155023,3.84837,2598.5,2598.0,1.5682]
[1727188155234,3.84837,2598.5,2596.9,0.3990187]
[1727188155235,3.84867,2598.3,2597.7,5.41766]
[1727188155392,3.84898,2598.1,2597.7,0.926728]
[1727188155587,3.84867,2598.3,2597.4,3.84985]
[1727188155791,3.84906,2598.1,2597.4,3.84985]
[1727188155990,3.84751,2599.1,2597.3,1.5682]
[1727188155991,3.84845,2598.5,2597.9,3.84924]
[1727188156245,3.84853,2598.4,2597.9,0.384924]
[1727188156390,3.84868,2598.3,2597.7,3.84946]
[1727188156590,3.84868,2598.3,2597.5,3.84976]
[1727188156591,3.84901,2598.1,2597.5,7.69949]
[1727188156989,3.84868,2598.3,2597.3,1.5682]
[1727188156990,3.84868,2598.3,2597.7,3.84946]
[1727188157201,3.84868,2598.3,2597.8,0.384946]
[1727188157413,3.84844,2598.5,2597.8,0.384946]
[1727188157616,1.5956,2598.7,2597.3,1.5682]
[1727188157804,3.84939,2597.9,2597.3,0.76469626]
[1727188158026,3.84903,2598.1,2597.3,0.76469626]
[1727188158234,3.84903,2598.1,2597.3,4.61472626]
[1727188158435,3.84903,2598.1,2597.4,4.69647763]
[1727188158636,3.8492,2598.0,2597.4,0.84648763]
[1727188158797,3.84903,2598.1,2597.4,4.69647763]
[1727188158798,7.69813,2598.1,2597.4,4.69647763]
[1727188158994,3.84904,2598.1,2597.5,0.54611739]
[1727188159338,3.84873,2598.3,2597.6,3.84969]
[1727188159722,3.84901,2598.1,2597.4,3.84995]
[1727188159927,5.44373,2598.7,2597.4,3.84986]
[1727188159928,3.84892,2598.2,2597.4,3.84986]
[1727188160137,5.44377,2598.7,2597.5,0.46146463]
[1727188160308,3.84922,2598.0,2597.3,4.61483626]
[1727188160648,3.84842,2598.5,2597.5,3.84984]
[1727188160810,3.84842,2598.5,2597.7,3.84945]
[1727188161012,3.84842,2598.5,2597.4,0.46148363]
[1727188161013,3.84757,2599.1,2598.1,1.5682]
[1727188161228,1.5956,2599.2,2598.1,1.5682]
[1727188161229,1.5956,2599.2,2598.3,3.84864]
[1727188161423,1.5956,2599.2,2598.1,1.5682]
[1727188161424,3.84758,2599.1,2598.4,4.233264]
[1727188161725,1.5956,2599.5,2598.8,3.84781]
[1727188161923,1.5956,2599.5,2598.4,0.384864]
[1727188161924,3.84757,2599.1,2598.4,4.233364]
[1727188162125,3.84767,2599.0,2598.2,3.8488]
[1727188162312,1.5956,2599.5,2598.1,1.5682]
[1727188162313,3.84823,2598.6,2598.1,1.5682]
[1727188162530,3.84823,2598.6,2597.8,3.84933]
[1727188162531,3.84823,2598.6,2597.8,3.84931]
[1727188162710,3.84823,2598.6,2597.7,1.5682]
[1727188162711,3.84876,2598.3,2597.7,1.5682]
[1727188162940,3.84876,2598.3,2597.7,5.41772]
[1727188163140,3.84844,2598.5,2597.8,3.8493]
[1727188163341,5.44373,2598.7,2597.9,0.54175]
[1727188163549,5.44373,2598.7,2598.0,3.84901]
[1727188163700,3.84785,2598.9,2598.1,3.84887]
[1727188163909,7.6954,2599.0,2598.2,3.84868]
[1727188164104,3.84825,2598.6,2598.0,3.84903]
[1727188164305,3.84862,2598.4,2597.9,0.54175]
[1727188164608,0.9291,2599.0,2597.7,1.5682]
[1727188164803,3.84893,2598.2,2597.7,1.5682]
[1727188165005,1.5956,2598.4,2597.3,1.5682]
[1727188165006,3.84905,2598.1,2597.3,1.5682]
[1727188165231,1.5956,2598.4,2597.3,1.5682]
[1727188165232,3.84952,2597.8,2597.3,1.5682]
[1727188165617,3.84957,2597.7,2596.5,1.5682]
[1727188165815,1.5956,2598.4,2596.8,3.85084]
[1727188165816,3.84914,2598.0,2596.8,3.85084]
[1727188166016,1.5956,2598.4,2597.0,3.85049]
[1727188166017,0.55,2598.3,2597.0,3.85049]
[1727188166237,3.84994,2597.5,2596.8,3.85088]
[1727188166463,3.84994,2597.5,2596.7,1.5682]
[1727188166464,3.85016,2597.3,2596.7,1.5682]
[1727188166656,3.85016,2597.3,2595.8,6.08589]
[1727188166657,3.85078,2596.9,2596.4,1.5682]
[1727188166969,3.85078,2596.9,2596.3,3.85162]
[1727188166970,3.85049,2597.1,2596.3,3.8516]
[1727188167137,3.85025,2597.3,2596.6,3.8511]
[1727188167359,3.85025,2597.3,2596.5,3.85133]
[1727188167360,3.8505,2597.1,2596.5,3.85121]
[1727188167500,7.69988,2597.5,2596.9,3.85072]
[1727188167704,1.5956,2597.6,2596.5,3.85131]
[1727188167705,3.85026,2597.3,2596.5,3.85131]
[1727188168014,3.85026,2597.3,2596.5,4.393181]
[1727188168231,3.85005,2597.4,2596.8,3.85086]
[1727188168430,3.85005,2597.4,2596.7,3.85102]
[1727188168747,5.4464,2596.9,2595.9,1.5682]
[1727188168947,1.5956,2596.9,2595.9,1.5682]
[1727188169148,5.44634,2596.9,2596.1,3.85189]
[1727188169306,1.5956,2596.9,2596.1,3.85183]
[1727188169649,1.5956,2596.9,2595.9,5.42038]
[1727188169954,5.44644,2596.9,2596.2,3.85178]
[1727188170101,3.85091,2596.8,2596.1,3.85192]
[1727188170302,1.5956,2596.9,2596.2,3.85176]
[1727188170534,3.85112,2596.7,2595.5,1.5682]
[1727188170813,4.395792,2596.7,2596.0,3.85197]
[1727188171109,3.85142,2596.5,2595.5,1.5682]
[1727188171413,3.85133,2596.6,2595.9,3.85217]
[1727188171614,3.85098,2596.8,2596.2,3.85169]
[1727188171828,3.85105,2596.7,2596.0,3.85198]
[1727188172203,3.85097,2596.8,2596.1,3.85183]
[1727188172407,0.7730176,2597.2,2596.2,1.5984]
[1727188172649,0.7730176,2597.4,2597.0,3.8505]
[1727188172861,2.3462176,2597.8,2596.8,3.85083]
[1727188173006,2.3462176,2597.8,2596.4,3.85148]
[1727188173007,1.5732,2597.2,2596.4,3.85148]
[1727188173357,7.7013,2597.0,2596.3,3.85161]
[1727188173653,3.85075,2596.9,2596.3,0.770335]
[1727188173807,3.94718051,2596.8,2596.2,3.85169]
[1727188174006,2.3462176,2597.2,2595.9,1.5984]
[1727188174007,3.85145,2596.5,2595.9,1.5984]
[1727188174240,1.5732,2596.4,2595.9,3.85214]
[1727188174426,3.8512,2596.6,2596.0,3.85206]
[1727188174669,5.42425,2596.7,2596.0,3.85206]
[1727188174670,1.5732,2596.7,2596.0,3.85206]
[1727188174868,1.5732,2596.7,2596.1,3.8518]
[1727188175086,1.5732,2596.7,2596.0,3.85206]
[1727188175087,3.85133,2596.6,2596.0,3.85206]
[1727188175289,4.778888,2596.6,2596.0,3.85205]
[1727188175446,4.778888,2596.6,2595.4,5.45133]
[1727188175447,3.85138,2596.5,2595.9,3.85219]
[1727188175650,0.927558,2596.6,2595.7,3.85247]
[1727188175651,3.85168,2596.3,2595.7,3.85247]
[1727188175866,3.85157,2596.4,2595.8,3.85237]
[1727188176189,3.85157,2596.4,2595.7,3.85243]
[1727188176190,3.85171,2596.3,2595.7,3.85243]
[1727188176389,3.85135,2596.5,2595.5,0.06959038]
[1727188176597,3.85135,2596.5,2596.0,3.85206]
[1727188176888,1.5732,2596.7,2595.9,3.8521]
[1727188177189,1.5732,2596.7,2595.7,3.85241]
[1727188177390,3.85143,2596.5,2595.8,3.85228]
[1727188177544,3.85143,2596.5,2595.7,3.85241]
[1727188177545,3.85172,2596.3,2595.7,3.85248]
[1727188177749,1.5732,2596.4,2595.8,3.85236]
[1727188177950,1.5732,2596.4,2595.9,3.85211]
[1727188178177,1.5732,2596.4,2596.0,3.85198]
[1727188178552,5.42397,2596.9,2596.1,3.85184]
[1727188178760,9.27479,2596.9,2596.2,3.85168]
[1727188178988,5.42397,2596.9,2596.2,3.85168]
[1727188179192,3.85121,2596.6,2595.9,3.85214]
[1727188179388,3.85114,2596.7,2596.0,3.852]
[1727188179576,3.85112,2596.7,2596.1,3.85183]
[1727188179964,3.85124,2596.6,2596.1,3.85183]
[1727188180175,0.542397,2596.8,2596.2,3.85168]
[1727188180176,4.393297,2596.8,2596.2,3.85168]
[1727188180374,5.42406,2596.9,2596.2,3.85168]
[1727188180375,5.42406,2596.9,2596.3,3.85157]
[1727188180578,1.5732,2596.9,2596.4,3.85148]
[1727188180749,1.5732,2596.9,2596.5,3.85125]
[1727188180944,1.5732,2596.9,2596.0,3.852]
[1727188181197,1.5732,2596.9,2596.1,0.3852]
[1727188181392,3.85097,2596.8,2596.2,3.8517]
[1727188181992,1.5732,2596.9,2596.1,3.8519]
[1727188181993,3.85114,2596.7,2596.1,3.8519]
[1727188182397,3.85114,2596.7,2596.2,3.85175]
[1727188182398,3.85113,2596.7,2596.2,3.85175]
[1727188182958,5.42402,2596.9,2596.2,3.85175]
[1727188183161,3.85109,2596.7,2596.1,3.85185]
[1727188183496,5.42404,2596.9,2596.4,3.85139]
[1727188183698,1.5732,2596.9,2596.4,3.85139]
[1727188183855,5.42403,2596.9,2596.2,3.85168]
[1727188184057,3.85103,2596.8,2596.2,3.85168]
[1727188184365,2.115603,2596.9,2596.2,3.85168]
[1727188184587,1.5732,2596.9,2596.4,3.85141]
[1727188185461,1.5732,2597.6,2596.5,1.5984]
[1727188185822,1.5732,2597.6,2597.0,3.8505]
[1727188186009,1.5732,2597.6,2597.1,3.85035]
[1727188186171,1.5732,2597.6,2597.1,3.8504]
[1727188186359,1.5500952,2598.0,2596.6,3.8511]
[1727188186566,1.5500952,2598.0,2597.5,3.84977]
[1727188186797,1.5500952,2598.0,2597.4,3.84987]
[1727188187118,1.5500952,2598.0,2597.2,5.37329]
[1727188187119,0.0231952,2598.0,2597.9,3.84926]
[1727188188078,0.0231952,2598.0,2597.9,4.619125]
[1727188189494,0.0470358,2599.0,2598.9,3.84778]
[1727188189749,0.0470358,2599.0,2598.9,5.37088]
[1727188190134,0.0470358,2599.0,2598.9,13.236483]
[1727188190367,0.0470358,2599.0,2598.9,3.84778]
[1727188190543,0.0470358,2599.0,2598.6,1.5231]
[1727188190544,0.0470358,2599.0,2598.6,3.84819]
[1727188190738,0.0470358,2599.0,2598.4,3.84848]
[1727188190938,0.0470358,2599.0,2598.6,3.84822]
[1727188191237,0.0470358,2599.0,2598.5,3.84837]
[1727188191453,0.0470358,2599.0,2598.6,3.8482]
[1727188191630,0.0470358,2599.0,2598.7,3.84807]
[1727188191826,0.0470358,2599.0,2598.8,3.8478]
[1727188192675,0.0470358,2599.0,2598.5,3.84835]
[1727188192873,0.0470358,2599.0,2598.6,0.769681]
[1727188193046,0.0470358,2599.0,2598.6,3.84821]
[1727188193372,0.0470358,2599.0,2598.8,3.84788]
[1727188193585,0.0470358,2599.0,2598.9,3.84778]
[1727188194847,0.0470358,2599.0,2598.6,3.84814]
[1727188195048,0.0470358,2599.0,2598.9,3.84778]
[1727188195852,0.0470358,2599.0,2598.9,5.37088]
[1727188197337,0.0470358,2599.0,2598.9,14.143188]
[1727188197542,0.0470358,2599.0,2598.9,5.37088]
[1727188198279,0.0470358,2599.0,2598.9,13.44004893]
[1727188198581,0.0470358,2599.0,2598.9,13.80396289]
[1727188198736,0.0470358,2599.0,2598.9,9.88047789]
[1727188200905,0.0470358,2599.0,2598.9,7.09967689]
[1727188201088,0.0470358,2599.0,2598.9,14.25202289]
[1727188201462,0.0470358,2599.0,2598.9,17.25202289]
[1727188201659,0.0470358,2600.0,2598.9,11.88114289]
[1727188201918,0.0470358,2600.0,2599.9,5.4664]
[1727188202060,0.0470358,2600.0,2599.4,1.6201]
[1727188202270,0.0470358,2600.0,2599.5,3.84675]
[1727188202587,0.0470358,2600.0,2599.5,7.69353]
[1727188202907,0.0470358,2600.0,2599.9,3.8463]
[1727188203105,0.0470358,2600.0,2599.9,3.04359316]
[1727188203293,0.0470358,2600.0,2599.9,25.91172716]
[1727188203606,0.0470358,2600.0,2599.9,39.47651916]
[1727188203759,0.0470358,2600.0,2599.9,29.45824616]
[1727188203958,0.0470358,2600.0,2599.9,21.20814278]
[1727188204165,0.0470358,2600.0,2599.9,19.82627278]
[1727188204567,0.0470358,2600.0,2599.9,16.78403278]
[1727188205401,1.635,2601.3,2599.9,16.78403278]
[1727188205402,0.02215864,2601.0,2600.0,1.6201]
[1727188205559,3.84523,2600.7,2600.0,3.84604]
[1727188205760,0.0470358,2601.9,2600.2,1.6201]
[1727188205959,0.0470358,2601.9,2600.6,3.84519]
[1727188206190,0.0470358,2601.9,2600.3,3.84563]
[1727188206191,0.0470358,2601.9,2600.8,3.84485]
[1727188206378,3.84448,2601.2,2600.5,3.84528]
[1727188206575,0.384448,2601.1,2600.4,3.84541]
[1727188206802,3.84417,2601.4,2600.5,3.84541]
[1727188206961,3.84447,2601.2,2600.5,7.69071]
[1727188207166,3.84447,2601.2,2600.5,3.8453]
[1727188207364,3.84381,2601.6,2600.3,3.84568]
[1727188207568,0.00203,2601.7,2600.1,1.6201]
[1727188207569,3.84427,2601.3,2600.6,3.84514]
[1727188207789,0.0150056,2601.7,2600.1,5.46609]
[1727188207790,3.84405,2601.5,2601.0,3.84467]
[1727188208000,3.84405,2601.5,2600.8,3.84489]
[1727188208437,3.8586756,2601.7,2600.9,0.06913915]
[1727188208438,0.0150056,2601.7,2600.9,0.06913915]
[1727188208654,1.635,2601.5,2600.9,3.84471]
[1727188208934,0.0150056,2601.7,2601.1,3.84442]
[1727188209132,0.0150056,2601.7,2601.1,3.84441]
[1727188209338,0.0150056,2601.7,2601.2,0.06911506]
[1727188209541,0.0150056,2601.7,2601.0,3.84454]
[1727188209542,3.8438,2601.6,2601.0,3.84454]
[1727188209738,0.0150056,2601.7,2601.1,3.84443]
[1727188210058,0.0150056,2601.7,2601.4,3.84398]
[1727188210640,0.0150056,2601.7,2600.2,2.166709]
[1727188210641,0.55,2601.5,2600.2,2.166709]
[1727188210941,5.47915,2601.4,2600.7,3.84508]
[1727188211102,5.47915,2601.4,2600.8,3.84493]
[1727188211103,1.635,2601.4,2600.8,3.84493]
[1727188211300,1.635,2601.4,2601.1,3.84452]
[1727188211599,1.6500056,2601.7,2601.3,3.84412]
[1727188211831,1.6500056,2601.7,2601.4,3.84408]
[1727188212183,1.6500056,2601.7,2601.1,3.84441]
[1727188212343,1.6500056,2601.7,2601.1,3.84439]
[1727188212565,1.6500056,2601.7,2601.3,3.84412]
[1727188212696,1.6500056,2601.7,2600.9,1.6201]
[1727188212697,0.0150056,2601.7,2601.6,3.84378]
[1727188213095,0.0150056,2601.7,2601.3,5.46423]
[1727188213406,0.0150056,2601.7,2601.6,3.84378]
[1727188214023,0.0150056,2601.7,2601.6,9.588696]
[1727188214240,0.0150056,2601.7,2601.6,4.996946]
[1727188214442,0.0150056,2601.7,2601.6,3.84378]
[1727188216747,0.0150056,2601.7,2600.6,4.543]
[1727188216748,3.8587456,2601.7,2600.6,4.543]
[1727188216900,0.38587456,2601.6,2601.0,3.84457]
[1727188217094,0.38587456,2601.6,2600.8,3.84487]
[1727188217095,3.84404,2601.5,2600.8,3.84487]
[1727188217298,0.38587456,2601.6,2600.6,3.84524]
[1727188217299,3.84439,2601.2,2600.6,3.84524]
[1727188217509,3.84439,2601.2,2600.5,3.8454]
[1727188217717,3.84439,2601.2,2600.4,3.8455]
[1727188217925,3.84439,2601.2,2600.6,3.84525]
[1727188218245,1.5323,2601.4,2600.9,3.84481]
[1727188218751,18.6026566,2601.7,2601.1,3.84448]
[1727188218896,18.6026566,2601.7,2601.5,3.84381]
[1727188219223,18.6026566,2601.7,2601.6,5.38678]
[1727188219434,18.6026566,2601.7,2601.6,19.84837]
[1727188219596,18.6026566,2601.7,2601.6,16.407872]
[1727188219827,18.6026566,2601.7,2601.6,11.705983]
[1727188220130,18.6026566,2601.7,2601.5,3.84381]
[1727188220825,18.6026566,2601.7,2601.6,3.84378]
[1727188221043,18.6026566,2601.7,2601.6,13.588647]
[1727188221284,18.6026566,2601.7,2601.6,10.361311]
[1727188221473,18.6026566,2601.7,2601.3,3.84419]
[1727188221474,18.6026566,2601.7,2601.4,3.84406]
[1727188221777,18.6026566,2601.7,2600.6,3.0]
[1727188221778,1.62838832,2601.6,2600.8,3.84486]
[1727188221945,3.84394,2601.5,2600.9,3.84473]
[1727188222152,3.84449,2601.2,2600.6,3.8452]
[1727188222461,2.58391623,2601.5,2600.6,3.8452]
[1727188222462,2.58391623,2601.5,2601.0,3.84454]
[1727188222648,1.5323,2601.6,2601.0,3.84454]
[1727188222844,1.5323,2601.6,2601.2,3.84437]
[1727188223043,1.5323,2601.6,2601.3,3.84413]
[1727188223243,18.6026566,2601.7,2601.5,3.84391]
[1727188223494,18.6026566,2601.7,2601.5,3.84384]
[1727188223843,18.6026566,2601.7,2601.4,3.84395]
[1727188224194,18.6026566,2601.7,2601.6,3.84378]
[1727188224488,18.6026566,2601.7,2601.6,5.38678]
[1727188225258,18.6026566,2601.7,2601.6,21.233594]
[1727188225463,18.6026566,2601.7,2601.6,8.532916]
[1727188226643,18.6026566,2601.7,2601.6,8.537647]
[1727188226863,18.6026566,2601.7,2601.6,9.8142432]
[1727188227291,18.6026566,2601.7,2601.6,8.537647]
[1727188227854,18.6026566,2601.7,2601.6,5.391511]
[1727188228151,18.6026566,2601.7,2601.6,3.848511]
[1727188228385,18.6026566,2601.7,2601.6,6.903363]
[1727188229453,18.6026566,2601.7,2601.6,8.92505567]
[1727188229649,18.6026566,2601.7,2601.6,9.78148275]
[1727188230205,0.0617952,2603.0,2601.7,1.543]
[1727188230358,0.0617952,2603.0,2602.9,3.84186]
[1727188230785,0.0617952,2603.0,2602.9,30.76361348]
[1727188231013,0.0617952,2603.0,2602.9,34.30956835]
[1727188231303,0.0617952,2603.0,2602.9,35.92196835]
[1727188232418,1.6423,2604.2,2603.8,3.84048]
[1727188232630,0.0617952,2604.3,2604.2,3.83995]
[1727188233314,0.0617952,2604.3,2604.2,24.14718]
[1727188233822,0.0617952,2604.3,2604.2,8.659499]
[1727188234108,0.0617952,2604.3,2604.1,3.84008]
[1727188234313,0.0617952,2604.3,2604.2,3.83995]
[1727188234477,0.0617952,2604.3,2604.1,3.83995]
[1727188234673,0.0617952,2604.3,2604.0,3.84022]
[1727188234886,0.0617952,2604.3,2604.2,3.83995]
[1727188236079,0.0617952,2604.3,2604.2,14.841839]
[1727188236385,0.0617952,2604.3,2604.2,8.665499]
[1727188237977,0.0617952,2604.3,2604.2,9.24772085]
[1727188238176,0.0617952,2604.3,2604.2,8.665499]
[1727188238424,0.0617952,2604.3,2604.2,9.9160579]
[1727188241320,0.0617952,2604.3,2604.2,8.665499]
[1727188243219,0.0617952,2604.3,2604.1,3.84]
[1727188243386,0.0617952,2604.3,2604.2,3.83995]
[1727188243580,0.0617952,2604.3,2602.2,2.0]
[1727188243581,0.0617952,2604.3,2603.3,1.6124]
[1727188243831,1.6423,2604.1,2603.3,3.84124]
[1727188244028,3.84097,2603.6,2603.0,3.84171]
[1727188244227,3.84101,2603.5,2603.0,4.610079]
[1727188244531,3.84047,2603.9,2603.3,3.84125]
[1727188244849,3.84047,2603.9,2603.4,0.06889104]
[1727188244982,3.84047,2603.9,2603.4,3.91000104]
[1727188245314,5.48249,2604.1,2603.5,3.90973546]
[1727188245315,1.6423,2604.1,2603.5,3.90973546]
[1727188245518,1.6423,2604.1,2603.4,0.7751191]
[1727188245519,3.84063,2603.8,2603.4,0.7751191]
[1727188245842,0.55,2604.0,2602.7,3.84209]
[1727188246175,3.84112,2603.5,2602.9,3.84177]
[1727188246340,1.6465,2603.4,2602.7,3.84202]
[1727188246487,3.84186,2603.0,2602.3,3.84267]
[1727188246888,1.6465,2603.4,2602.2,3.84281]
[1727188247082,3.84197,2602.9,2602.3,4.226991]
[1727188247319,3.84161,2603.1,2602.4,3.84258]
[1727188247520,3.84196,2602.9,2602.3,4.227011]
[1727188247734,3.84202,2602.8,2602.3,0.384281]
[1727188247936,3.84202,2602.8,2602.0,3.84311]
[1727188247937,3.84225,2602.7,2602.0,7.6862]
[1727188248235,3.84225,2602.7,2601.6,3.848491]
[1727188248236,3.84246,2602.5,2601.9,3.84333]
[1727188248415,3.84279,2602.3,2601.7,0.3848491]
[1727188248632,3.84279,2602.3,2601.6,3.848411]
[1727188249019,3.84294,2602.2,2601.6,3.848411]
[1727188249384,1.6465,2602.2,2601.6,0.004731]
[1727188249732,3.84316,2602.1,2601.6,0.004731]
[1727188249946,1.6465,2602.2,2601.6,0.004731]
[1727188250292,3.84364,2601.7,2601.6,0.004731]
[1727188250634,1.6465,2601.7,2601.6,0.004731]
[1727188251490,5.49014,2601.7,2601.6,0.004731]
[1727188251913,3.84425,2601.3,2600.6,7.69035]
[1727188252092,1.6465,2600.8,2600.3,3.84567]
[1727188252441,1.6465,2600.8,2600.1,3.84591]
[1727188252442,5.4916,2600.8,2600.1,3.84591]
[1727188252705,1.6465,2600.8,2599.3,1.558]
[1727188253027,1.6465,2600.8,2599.6,3.84665]
[1727188253028,3.84546,2600.5,2599.6,3.84665]
[1727188253237,3.84573,2600.3,2599.7,0.384665]
[1727188253525,3.84573,2600.3,2599.7,4.231225]
[1727188253689,3.84546,2600.5,2599.8,3.84635]
[1727188253894,3.84543,2600.5,2600.0,3.84604]
[1727188254125,3.84517,2600.7,2600.0,0.769239]
[1727188254288,3.84542,2600.5,2600.0,0.769239]
[1727188254694,3.84565,2600.4,2599.6,3.84667]
[1727188254906,3.84575,2600.3,2599.6,3.84664]
[1727188255108,3.84537,2600.6,2599.9,3.84626]
[1727188255337,3.84542,2600.5,2599.9,3.84626]
[1727188255561,1.6465,2600.8,2600.0,0.06919447]
[1727188255690,1.6465,2600.8,2600.5,3.84538]
[1727188256037,1.6465,2601.2,2600.7,3.84502]
[1727188256253,1.6465,2601.2,2600.6,4.614201]
[1727188256535,1.6465,2601.2,2600.4,3.84549]
[1727188256536,1.6465,2601.2,2600.1,1.558]
[1727188256692,3.84382,2601.6,2601.0,7.68911]
[1727188256693,5.49032,2601.6,2601.0,7.68911]
[1727188256895,1.6465,2601.6,2601.1,3.91360272]
[1727188257090,1.6465,2601.6,2601.2,3.84435]
[1727188257329,1.6465,2601.6,2601.1,0.77581327]
[1727188257537,1.6465,2601.6,2601.1,3.84438]
[1727188257706,1.6465,2601.6,2601.2,3.84434]
[1727188258096,5.48976,2602.0,2601.4,3.84404]
[1727188258435,1.6465,2602.0,2601.0,3.84462]
[1727188258734,0.77282402,2603.3,2601.0,3.8446]
[1727188258735,1.6465,2601.4,2601.0,3.8446]
[1727188259035,1.6465,2601.4,2600.4,1.558]
[1727188259237,1.6465,2601.4,2601.0,3.84453]
[1727188259438,1.6465,2601.4,2601.1,3.84452]
[1727188259639,1.6465,2601.4,2601.0,3.84453]
[1727188259640,3.84423,2601.3,2600.6,3.84519]
[1727188259950,3.84423,2601.3,2600.7,0.38452]
[1727188260232,3.84423,2601.3,2600.7,4.22959]
[1727188260441,3.84423,2601.3,2600.4,1.558]
[1727188260442,1.6465,2601.4,2600.4,5.4035]
[1727188260644,1.6465,2601.4,2600.6,3.84512]
[1727188260936,1.5089,2601.7,2601.2,3.84437]
[1727188261144,1.5089,2601.7,2601.2,7.68874]
[1727188261365,1.5089,2601.7,2601.3,3.84412]
[1727188261523,1.5089,2601.7,2600.8,1.6398]
[1727188261720,9.1964,2601.7,2601.0,3.84455]
[1727188262060,9.1964,2601.7,2601.0,4.229005]
[1727188262061,3.8438,2601.6,2601.0,4.229005]
[1727188262264,5.35263,2601.7,2601.2,3.84435]
[1727188262265,1.5089,2601.7,2601.2,3.84435]
[1727188262473,3.84388,2601.6,2601.0,4.229075]
[1727188262631,1.5089,2601.7,2601.0,0.384455]
[1727188262839,3.84424,2601.3,2600.8,3.84486]
[1727188263135,1.5089,2601.7,2600.9,3.84473]
[1727188263136,5.35262,2601.7,2600.9,3.84473]
[1727188263432,1.5089,2601.7,2600.6,3.8452]
[1727188263743,3.8446,2601.1,2600.0,1.6398]
[1727188263946,3.8447,2601.0,2600.0,1.63268632]
[1727188264247,3.8447,2601.0,2600.2,3.84577]
[1727188264412,3.8447,2601.0,2600.4,3.84555]
[1727188264616,3.8447,2601.0,2600.5,0.06915771]
[1727188264831,3.84485,2600.9,2600.5,0.06915771]
[1727188265099,3.8447,2601.0,2600.5,0.06915771]
[1727188265414,3.84501,2600.8,2600.2,3.84576]
[1727188265703,5.35402,2600.7,2600.2,3.84579]
[1727188266007,1.5089,2600.7,2600.2,3.84579]
[1727188266200,1.5089,2600.7,2599.3,3.84714]
[1727188266201,1.5089,2600.7,2599.9,3.84627]
[1727188266417,1.5089,2600.7,2600.4,3.84545]
[1727188266704,1.5089,2600.7,2600.5,3.8454]
[1727188266911,1.5089,2601.1,2600.5,0.769085]
[1727188267074,1.5089,2601.5,2601.2,3.8443]
[1727188267407,3.84209,2602.8,2601.3,3.84423]
[1727188267408,1.5089,2601.8,2601.3,3.84423]
[1727188267613,1.5089,2602.4,2601.7,3.84364]
[1727188267757,1.5089,2602.4,2601.2,3.84429]
[1727188267957,1.5089,2602.4,2600.9,0.548474]
[1727188267958,3.84328,2602.0,2601.0,3.0]
[1727188268206,3.8414,2603.3,2600.9,3.84476]
[1727188268207,1.5089,2601.7,2600.9,3.84476]
[1727188268384,1.5089,2601.7,2601.2,3.84425]
[1727188268693,1.5089,2602.0,2601.0,3.84466]
[1727188268895,1.5089,2602.0,2600.9,0.548456]
[1727188269168,1.5089,2602.0,2601.7,3.84356]
[1727188269720,1.5089,2602.0,2601.8,3.84339]
[1727188269872,1.5089,2602.3,2601.6,3.8437]
[1727188270071,1.5089,2602.3,2601.8,3.84345]
[1727188270309,1.5089,2602.3,2601.8,0.768715]
[1727188270512,1.5089,2602.6,2602.1,3.84295]
[1727188270710,5.35127,2602.6,2602.1,3.84295]
[1727188270928,5.35127,2602.6,2601.8,3.84345]
[1727188270929,1.5089,2602.6,2601.8,3.84345]
[1727188271081,3.84247,2602.5,2601.9,3.84322]
[1727188271281,1.5089,2602.6,2602.0,0.06901718]
[1727188271485,1.5089,2603.0,2602.2,3.84289]
[1727188271686,3.84224,2602.7,2602.1,3.84295]
[1727188271888,3.84212,2602.8,2602.2,3.84289]
[1727188272119,1.5089,2603.0,2602.3,0.06899419]
[1727188272324,1.5089,2603.0,2602.6,3.84221]
[1727188272622,1.5089,2603.0,2602.5,3.84237]
[1727188272793,5.35064,2603.0,2602.4,7.68509]
[1727188272997,1.5089,2603.0,2602.4,3.84252]
[1727188273195,3.873616,2603.1,2602.4,3.84252]
[1727188273196,0.032046,2603.1,2602.8,3.84192]
[1727188273396,0.032046,2603.1,2602.9,3.91080044]
[1727188273820,0.032046,2603.1,2603.0,3.84172]
[1727188274179,0.032046,2603.1,2602.9,3.84185]
[1727188274389,0.032046,2603.1,2602.9,3.84178]
[1727188274681,0.032046,2603.1,2603.0,6.14942]
[1727188275231,0.032046,2603.1,2603.0,3.84172]